Workbook

Sheet 2026 Projected CAP
A1: 2026 CAP Projections
A2: CAP RATE = ( Annual NOI / Current Market Value) x 100
A3: Annual NOI = Gross Operating Income - Operating Expenses
A5: This is an owner occupied building. Two of the Commercial Bays and both residential units are directly managed and all income goes to the owner.
A6: Two projected CAP Rates will be provided, one based on lease rates of approximately $1 per sqft.
A7: Currently lease rates vary between $1 -$1.5 per sqft on the low end of commercial/residential property on Galveston Island.
A8: So this leaves room for future growth.
A9: Lease CAP = (138,000-60346/1250000) x 100 = 6.21%
A10: Owner Occupied Income CAP = (206400 - 60346/1250000) x 100 = 11.6 %
A13: 2026 Projected Gross Operating Income | B13: Projected Lease Income | C13: Projected Owner Occupied Income | D13: Current Tenant | E13: Usage
A14: 1502 39th street Galveston TX 77550 | B14: 1500 | C14: 2500 | D14: Owner | E14: Event Room/Coffee Shop
A15: 1504 39th street Galveston TX 77550 | B15: 1500 | C15: 2400 | D15: Owner | E15: Residential/Four Furnished Private Bedrooms for Rent
A16: 1506 39th street Galveston TX 77550 | B16: 1000 | C16: 1000 | D16: Mary | E16: Bakery & Market Retail Shop/Office Space
A17: 1508 39th street Galveston TX 77550 | B17: 1000 | C17: 1000 | D17: Mary | E17: Cooking School/Commercial Kitchen
A18: 1510 39th street Galveston TX 77550 | B18: 1000 | C18: 1000 | D18: Mary | E18: Retail Bay/Kitchen Storage
A19: 1512 39th street Galveston TX 77550 | B19: 1000 | C19: 1000 | D19: Mary | E19: Catering Storage
A20: 1514 39th street Galveston TX 77550 | B20: 2500 | C20: 4800 | D20: Owner | E20: Residential/Seven Furnished Private Bedrooms for Rent
A21: 3821 Avenue N Galveston TX 77550 | B21: 1000 | C21: 1000 | D21: Mitch | E21: Gym/Private Trainer
A22: 3823 Avenue N Galveston TX 77550 | B22: 1000 | C22: 2500 | D22: Owner | E22: Private Club/Liquor License
A23: Subtotal | B23: =SUM(B14:B22) -> 11500 | C23: 17200
A24: Total Operating Income | B24: 138000 | C24: 206400
A26: 2026 Projected Operating Expenses | B26: Yearly
O27: 16373
A28: CAM (Repairs & Maintenance Allowance $500 month) | B28: 6000 | O28: 35986
A29: Property Tax | B29: 11541 | O29: 11541
A30: Wind Insurance | B30: 12859 | O30: 12859
A31: Flood Insurance | B31: 6556 | O31: 6556
A32: Fire Insurance | B32: 8384 | O32: 8384
A33: Umbrella Insurance | B33: 733 | O33: 733
A34: Natural Gas | B34: 992 | O34: 992
A35: Electric (1504 & 1514) | B35: 3812 | O35: 3812
A36: Electric (1504 July New Company) | B36: 1441 | O36: 1441
A37: Electric (Combined Units of 1502/3823 Separate 1506/3821) | B37: 3903 | O37: 3903
A38: Internet 1514 Comcast | B38: 1437 | O38: 1437
A39: Water | B39: 2688 | O39: 2688
A40: Total Operating Expenses | B40: =SUM(B28:B39) -> 60346

Sheet 2025 CAP
A1: 2025 CAP Projections
A2: CAP RATE = ( Annual NOI / Current Market Value) x 100
A3: Annual NOI = Gross Operating Income - Operating Expenses
A5: This is an owner occupied building. Two of the Commercial Bays and both residential units are directly managed and all income goes to the owner.
A6: Two projected CAP Rates will be provided, one based on lease rates of approximately $1 per sqft.
A7: Currently lease rates vary between $1 -$1.5 per sqft on the low end of commercial/residential property on Galveston Island.
A8: So this leaves room for future growth.
A9: Lease CAP = (128,000-54753/1250000) x 100 = 5.85%

Sheet 2025 Rent Roll
A1: Unit | B1: Tenant | C1: Current Use | D1: Jan | E1: Feb | F1: Mar | G1: Apr | H1: May | I1: Jun | J1: Jul | K1: Aug | L1: Sep | M1: Oct | N1: Nov | O1: Dec | P1: End of Year Summary
A2: 1502 39th street Galveston TX 77550 | B2: Owner | C2: Event Room/Coffee Shop | D2: 1500 | E2: 1500 | F2: 1500 | G2: 1500 | H2: 1500 | I2: 1500 | J2: 1500 | K2: 1500 | L2: 1500 | M2: 1500 | N2: 1500 | O2: 1500
A3: 1504 39th street Galveston TX 77550 | B3: Owner | C3: Residential/Four Furnished Private Bedrooms for Rent | D3: 1500 | E3: 1500 | F3: 1500 | G3: 1500 | H3: 1500 | I3: 1500 | J3: 1500 | K3: 1500 | L3: 1500 | M3: 1500 | N3: 1500 | O3: 1500
A4: 1506 39th street Galveston TX 77550 | B4: Mary | C4: Bakery & Market Retail Shop/Office Space | D4: 750 | E4: 750 | F4: 750 | G4: 750 | H4: 750 | I4: 750 | J4: 750 | K4: 750 | L4: 750 | M4: 750 | N4: 1000 | O4: 1000
A5: 1508 39th street Galveston TX 77550 | B5: Mary | C5: Cooking School/Commercial Kitchen | D5: 750 | E5: 750 | F5: 750 | G5: 750 | H5: 750 | I5: 750 | J5: 750 | K5: 750 | L5: 750 | M5: 750 | N5: 1000 | O5: 1000
A6: 1510 39th street Galveston TX 77550 | B6: Mary | C6: Retail Bay/Kitchen Storage | D6: 750 | E6: 750 | F6: 750 | G6: 750 | H6: 750 | I6: 750 | J6: 750 | K6: 750 | L6: 750 | M6: 750 | N6: 1000 | O6: 1000
A7: 1512 39th street Galveston TX 77550 | B7: Mary | C7: Catering Storage | D7: 750 | E7: 750 | F7: 750 | G7: 750 | H7: 750 | I7: 750 | J7: 750 | K7: 750 | L7: 750 | M7: 750 | N7: 1000 | O7: 1000
A8: 1514 39th street Galveston TX 77550 | B8: Owner | C8: Residential/Seven Furnished Private Bedrooms for Rent | D8: 2500 | E8: 2500 | F8: 2500 | G8: 2500 | H8: 2500 | I8: 2500 | J8: 2500 | K8: 2500 | L8: 2500 | M8: 2500 | N8: 2500 | O8: 2500
A9: 3821 Avenue N Galveston TX 77550 | B9: Mitch | C9: Gym/Private Trainer | D9: 1000 | E9: 1000 | F9: 1000 | G9: 1000 | H9: 1000 | I9: 1000 | J9: 1000 | K9: 1000 | L9: 1000 | M9: 1000 | N9: 1000 | O9: 1000
A10: 3823 Avenue N Galveston TX 77550 | B10: Owner | C10: Private Club/Liquor License | D10: 1000 | E10: 1000 | F10: 1000 | G10: 1000 | H10: 1000 | I10: 1000 | J10: 1000 | K10: 1000 | L10: 1000 | M10: 1000 | N10: 1000 | O10: 1000
A11: Monthly Rent Collected | D11: =SUM(D2:D10) -> 10500 | E11: =SUM(E2:E10) -> 10500 | F11: =SUM(F2:F10) -> 10500 | G11: =SUM(G2:G10) -> 10500 | H11: =SUM(H2:H10) -> 10500 | I11: =SUM(I2:I10) -> 10500 | J11: =SUM(J2:J10) -> 10500 | K11: =SUM(K2:K10) -> 10500 | L11: =SUM(L2:L10) -> 10500 | M11: =SUM(M2:M10) -> 10500 | N11: =SUM(N2:N10) -> 11500 | O11: =SUM(O2:O10) -> 11500 | P11: =SUM(D11:O11) -> 128000

Sheet 2025 Expenses
A1: Expense | B1: January | C1: February | D1: March | E1: April | F1: May | G1: June | H1: July | I1: August | J1: September | K1: October | L1: November | M1: December | N1: Subtotal
A2: Property Tax | B2: 961.8 | C2: 961.8 | D2: 961.8 | E2: 961.8 | F2: 961.8 | G2: 961.8 | H2: 961.8 | I2: 961.8 | J2: 961.8 | K2: 961.8 | L2: 961.8 | M2: 961.8 | N2: =SUM(B2:M2) -> 11541.6
A3: Wind Insurance | B3: 1071.66 | C3: 1071.66 | D3: 1071.66 | E3: 1071.66 | F3: 1071.66 | G3: 1071.66 | H3: 1071.66 | I3: 1071.66 | J3: 1071.66 | K3: 1071.66 | L3: 1071.66 | M3: 1071.66 | N3: 12859.92
A4: Flood Insurance | B4: 546.41 | C4: 546.41 | D4: 546.41 | E4: 546.41 | F4: 546.41 | G4: 546.41 | H4: 546.41 | I4: 546.41 | J4: 546.41 | K4: 546.41 | L4: 546.41 | M4: 546.41 | N4: 6556.92
A5: Fire Insurance | B5: 698.66 | C5: 698.66 | D5: 698.66 | E5: 698.66 | F5: 698.66 | G5: 698.66 | H5: 698.66 | I5: 698.66 | J5: 698.66 | K5: 698.66 | L5: 698.66 | M5: 698.66 | N5: 8383.92
A6: Umbrella Insurance | B6: 61.16 | C6: 61.16 | D6: 61.16 | E6: 61.16 | F6: 61.16 | G6: 61.16 | H6: 61.16 | I6: 61.16 | J6: 61.16 | K6: 61.16 | L6: 61.16 | M6: 61.16 | N6: 733.92
A7: Natural Gas | B7: 148.61 | C7: 399.43 | D7: 201.41 | E7: 176 | F7: 155 | G7: 55 | H7: 45 | I7: 38 | J7: 35 | K7: 45 | L7: 88 | M7: 100 | N7: 1486.45
A8: Electric (1504 & 1514) | B8: 331.65 | C8: 322.6 | D8: 309.23 | E8: 330 | F8: 379 | G8: 579 | H8: 589 | I8: 579 | J8: 574 | K8: 474 | L8: 375 | M8: 350 | N8: 5192.48
A9: Electric (Combined Units of 1502/3823 Separate 1506/3821) | B9: 305.34 | C9: 258.73 | D9: 237.59 | E9: 371 | F9: 378 | G9: 365 | H9: 425 | I9: 435 | J9: 375 | K9: 356 | L9: 255 | M9: 225 | N9: 3986.66
A10: Maintenance ($500 per month set aside) | B10: 500 | C10: 500 | D10: 500 | E10: 500 | F10: 500 | G10: 500 | H10: 500 | I10: 500 | J10: 500 | K10: 500 | L10: 500 | M10: 500 | N10: 1200
A11: Water | B11: 221 | C11: 227 | D11: 250 | E11: 226 | F11: 225 | G11: 279 | H11: 265 | I11: 223 | J11: 224 | K11: 221 | L11: 227 | M11: 224 | N11: 2812
N12: =SUM(N2:N11) -> 54753.87

Sheet 2024 CAP
A1: 2024 CAP Projections
A2: CAP RATE = ( Annual NOI / Current Market Value) x 100
A3: Annual NOI = Gross Operating Income - Operating Expenses
A5: This is an owner occupied building. Two of the Commercial Bays and both residential units are directly managed and all income goes to the owner.
A6: Two projected CAP Rates will be provided, one based on lease rates of approximately $1 per sqft.
A7: Currently lease rates vary between $1 -$1.5 per sqft on the low end of commercial/residential property on Galveston Island.
A8: So this leaves room for future growth.
A9: Lease CAP = (126,000-50174/1250000) x 100 = 6.06%

Sheet 2024 Rent Roll
A1: Unit | B1: Tenant | C1: Current Use | D1: Jan | E1: Feb | F1: Mar | G1: Apr | H1: May | I1: Jun | J1: Jul | K1: Aug | L1: Sep | M1: Oct | N1: Nov | O1: Dec | P1: End of Year Summary
A2: 1502 39th street Galveston TX 77550 | B2: Owner | C2: Event Room/Coffee Shop | D2: 1500 | E2: 1500 | F2: 1500 | G2: 1500 | H2: 1500 | I2: 1500 | J2: 1500 | K2: 1500 | L2: 1500 | M2: 1500 | N2: 1500 | O2: 1500
A3: 1504 39th street Galveston TX 77550 | B3: Owner | C3: Residential/Four Furnished Private Bedrooms for Rent | D3: 1500 | E3: 1500 | F3: 1500 | G3: 1500 | H3: 1500 | I3: 1500 | J3: 1500 | K3: 1500 | L3: 1500 | M3: 1500 | N3: 1500 | O3: 1500
A4: 1506 39th street Galveston TX 77550 | B4: Mary | C4: Bakery & Market Retail Shop/Office Space | D4: 750 | E4: 750 | F4: 750 | G4: 750 | H4: 750 | I4: 750 | J4: 750 | K4: 750 | L4: 750 | M4: 750 | N4: 750 | O4: 750
A5: 1508 39th street Galveston TX 77550 | B5: Mary | C5: Cooking School/Commercial Kitchen | D5: 750 | E5: 750 | F5: 750 | G5: 750 | H5: 750 | I5: 750 | J5: 750 | K5: 750 | L5: 750 | M5: 750 | N5: 750 | O5: 750
A6: 1510 39th street Galveston TX 77550 | B6: Mary | C6: Retail Bay/Kitchen Storage | D6: 750 | E6: 750 | F6: 750 | G6: 750 | H6: 750 | I6: 750 | J6: 750 | K6: 750 | L6: 750 | M6: 750 | N6: 750 | O6: 750
A7: 1512 39th street Galveston TX 77550 | B7: Mary | C7: Catering Storage | D7: 750 | E7: 750 | F7: 750 | G7: 750 | H7: 750 | I7: 750 | J7: 750 | K7: 750 | L7: 750 | M7: 750 | N7: 750 | O7: 750
A8: 1514 39th street Galveston TX 77550 | B8: Owner | C8: Residential/Seven Furnished Private Bedrooms for Rent | D8: 2500 | E8: 2500 | F8: 2500 | G8: 2500 | H8: 2500 | I8: 2500 | J8: 2500 | K8: 2500 | L8: 2500 | M8: 2500 | N8: 2500 | O8: 2500
A9: 3821 Avenue N Galveston TX 77550 | B9: Mitch | C9: Gym/Private Trainer | D9: 1000 | E9: 1000 | F9: 1000 | G9: 1000 | H9: 1000 | I9: 1000 | J9: 1000 | K9: 1000 | L9: 1000 | M9: 1000 | N9: 1000 | O9: 1000
A10: 3823 Avenue N Galveston TX 77550 | B10: Owner | C10: Private Club/Liquor License | D10: 1000 | E10: 1000 | F10: 1000 | G10: 1000 | H10: 1000 | I10: 1000 | J10: 1000 | K10: 1000 | L10: 1000 | M10: 1000 | N10: 1000 | O10: 1000
A11: Monthly Rent Collected | D11: =SUM(D2:D10) -> 10500 | E11: =SUM(E2:E10) -> 10500 | F11: =SUM(F2:F10) -> 10500 | G11: =SUM(G2:G10) -> 10500 | H11: =SUM(H2:H10) -> 10500 | I11: =SUM(I2:I10) -> 10500 | J11: =SUM(J2:J10) -> 10500 | K11: =SUM(K2:K10) -> 10500 | L11: =SUM(L2:L10) -> 10500 | M11: =SUM(M2:M10) -> 10500 | N11: =SUM(N2:N10) -> 10500 | O11: =SUM(O2:O10) -> 10500 | P11: =SUM(D11:O11) -> 126000

Sheet 2024 Expenses
A1: Expense | B1: January | C1: February | D1: March | E1: April | F1: May | G1: June | H1: July | I1: August | J1: September | K1: October | L1: November | M1: December | N1: Subtotal
A2: Property Tax | B2: 961.8 | C2: 961.8 | D2: 961.8 | E2: 961.8 | F2: 961.8 | G2: 961.8 | H2: 961.8 | I2: 961.8 | J2: 961.8 | K2: 961.8 | L2: 961.8 | M2: 961.8 | N2: =SUM(B2:M2) -> 11541.6
A3: Wind Insurance | B3: 1071.66 | C3: 1071.66 | D3: 1071.66 | E3: 1071.66 | F3: 1071.66 | G3: 1071.66 | H3: 1071.66 | I3: 1071.66 | J3: 1071.66 | K3: 1071.66 | L3: 1071.66 | M3: 1071.66 | N3: 12859.92
A4: Flood Insurance | B4: 546.41 | C4: 546.41 | D4: 546.41 | E4: 546.41 | F4: 546.41 | G4: 546.41 | H4: 546.41 | I4: 546.41 | J4: 546.41 | K4: 546.41 | L4: 546.41 | M4: 546.41 | N4: 6556.92
A5: Fire Insurance | B5: 698.66 | C5: 698.66 | D5: 698.66 | E5: 698.66 | F5: 698.66 | G5: 698.66 | H5: 698.66 | I5: 698.66 | J5: 698.66 | K5: 698.66 | L5: 698.66 | M5: 698.66 | N5: 8383.92
A6: Umbrella Insurance | B6: 61.16 | C6: 61.16 | D6: 61.16 | E6: 61.16 | F6: 61.16 | G6: 61.16 | H6: 61.16 | I6: 61.16 | J6: 61.16 | K6: 61.16 | L6: 61.16 | M6: 61.16 | N6: 733.92
A7: Natural Gas | B7: 168.88 | C7: 277.26 | D7: 129.83 | E7: 51.38 | F7: 34.4 | G7: 39.43 | H7: 36.93 | I7: 36.42 | J7: 33.02 | K7: 36.98 | L7: 40.16 | M7: 66.71 | N7: 951.4
A8: Electric (1504 & 1514) | B8: 130.71 | C8: 102.68 | D8: 138.93 | E8: 209.7 | F8: 65.25 | G8: 361.13 | H8: 652.23 | I8: 1021.11 | J8: 791.06 | K8: 785.82 | L8: 656.73 | M8: 573.47 | N8: 5488.82
A9: Electric (Combined Units of 1502/3823 Separate 1506/3821) | B9: 91.96 | C9: 39.86 | D9: 36.9 | E9: 101.61 | F9: 39.81 | G9: 108.71 | H9: 86.22 | I9: 115.41 | J9: 228.13 | K9: 488.91 | L9: na | M9: 305.34 | N9: 1642.86
A10: Water | B10: 167.7 | C10: 165.05 | D10: 156.99 | E10: 172.05 | F10: 175.05 | G10: 164.7 | H10: 156.54 | I10: 168.64 | J10: 168.64 | K10: 153.54 | L10: 183.35 | M10: 183.35 | N10: 2015.6
N11: =SUM(N2:N10) -> 50174.96

Sheet 2023 CAP
A1: 2023 CAP Projections
A2: CAP RATE = ( Annual NOI / Current Market Value) x 100
A3: Annual NOI = Gross Operating Income - Operating Expenses
A5: This is an owner occupied building. Two of the Commercial Bays and both residential units are directly managed and all income goes to the owner.
A6: Two projected CAP Rates will be provided, one based on lease rates of approximately $1 per sqft.
A7: Currently lease rates vary between $1 -$1.5 per sqft on the low end of commercial/residential property on Galveston Island.
A8: So this leaves room for future growth.
A9: Lease CAP = (115650-58285/1250000) x 100 = 4.58%

Sheet 2023 Rent Roll
A1: Unit | B1: Tenant | C1: Current Use | D1: Jan | E1: Feb | F1: Mar | G1: Apr | H1: May | I1: Jun | J1: Jul | K1: Aug | L1: Sep | M1: Oct | N1: Nov | O1: Dec | P1: End of Year Summary
A2: 1502 39th street Galveston TX 77550 | B2: Owner | C2: Event Room/Coffee Shop | D2: 1500 | E2: 1500 | F2: 1500 | G2: 1500 | H2: 1500 | I2: 1500 | J2: 1500 | K2: 1500 | L2: 1500 | M2: 1500 | N2: 1500 | O2: 1500
A3: 1504 39th street Galveston TX 77550 | B3: Owner | C3: Residential/Four Furnished Private Bedrooms for Rent | D3: 1500 | E3: 1500 | F3: 1500 | G3: 1500 | H3: 1500 | I3: 1500 | J3: 1500 | K3: 1500 | L3: 1500 | M3: 1500 | N3: 1500 | O3: 1500
A4: 1506 39th street Galveston TX 77550 | B4: Mary | C4: Bakery & Market Retail Shop/Office Space | D4: 450 | E4: 450 | F4: 450 | G4: 450 | H4: 450 | I4: 450 | J4: 450 | K4: 450 | L4: 550 | M4: 650 | N4: 750 | O4: 1000
A5: 1508 39th street Galveston TX 77550 | B5: Mary | C5: Cooking School/Commercial Kitchen | D5: 450 | E5: 450 | F5: 450 | G5: 450 | H5: 450 | I5: 450 | J5: 450 | K5: 450 | L5: 550 | M5: 650 | N5: 750 | O5: 1000
A6: 1510 39th street Galveston TX 77550 | B6: Mary | C6: Retail Bay/Kitchen Storage | D6: 450 | E6: 450 | F6: 450 | G6: 450 | H6: 450 | I6: 450 | J6: 450 | K6: 450 | L6: 550 | M6: 650 | N6: 750 | O6: 1000
A7: 1512 39th street Galveston TX 77550 | B7: Mary | C7: Catering Storage | D7: 450 | E7: 450 | F7: 450 | G7: 450 | H7: 450 | I7: 450 | J7: 450 | K7: 450 | L7: 550 | M7: 650 | N7: 750 | O7: 1000
A8: 1514 39th street Galveston TX 77550 | B8: Owner | C8: Residential/Seven Furnished Private Bedrooms for Rent | D8: 2500 | E8: 2500 | F8: 2500 | G8: 2500 | H8: 2500 | I8: 2500 | J8: 2500 | K8: 2500 | L8: 2500 | M8: 2500 | N8: 2500 | O8: 2500
A9: 3821 Avenue N Galveston TX 77550 | B9: Mitch | C9: Gym/Private Trainer | D9: 725 | E9: 725 | F9: 1000 | G9: 1000 | H9: 1000 | I9: 1000 | J9: 1000 | K9: 1000 | L9: 1000 | M9: 1000 | N9: 1000 | O9: 1000
A10: 3823 Avenue N Galveston TX 77550 | B10: Owner | C10: Private Club/Liquor License | D10: 1000 | E10: 1000 | F10: 1000 | G10: 1000 | H10: 1000 | I10: 1000 | J10: 1000 | K10: 1000 | L10: 1000 | M10: 1000 | N10: 1000 | O10: 1000
A11: Monthly Rent Collected | D11: =SUM(D2:D10) -> 9025 | E11: =SUM(E2:E10) -> 9025 | F11: =SUM(F2:F10) -> 9300 | G11: =SUM(G2:G10) -> 9300 | H11: =SUM(H2:H10) -> 9300 | I11: =SUM(I2:I10) -> 9300 | J11: =SUM(J2:J10) -> 9300 | K11: =SUM(K2:K10) -> 9300 | L11: =SUM(L2:L10) -> 9700 | M11: =SUM(M2:M10) -> 10100 | N11: =SUM(N2:N10) -> 10500 | O11: =SUM(O2:O10) -> 11500 | P11: =SUM(D11:O11) -> 115650
A13: *Increase in rent after construction improvements and moving Mitch to new space. March 2023 $725 to $1000 | C13: ** Increase in rent after adding a new bay for Mary (gave her office space/Market place/bakery/ added a cooking school. Basically gave her new revenue streams) long term goal is to raise her rent slowly to get back the investment in building improvements. Oct 2023

Sheet 2023 Expenses
A1: Expense | B1: January | C1: February | D1: March | E1: April | F1: May | G1: June | H1: July | I1: August | J1: September | K1: October | L1: November | M1: December | N1: Subtotal
A2: Property Tax | B2: 1576.37 | C2: 1576.37 | D2: 1576.37 | E2: 1576.37 | F2: 1576.37 | G2: 1576.37 | H2: 1576.37 | I2: 1576.37 | J2: 1576.37 | K2: 1576.37 | L2: 1576.37 | M2: 1576.37 | N2: =SUM(B2:M2) -> 18916.44
A3: Wind Insurance | B3: 1324.33 | C3: 1324.33 | D3: 1324.33 | E3: 1324.33 | F3: 1324.33 | G3: 1324.33 | H3: 1324.33 | I3: 1071.66 | J3: 1071.66 | K3: 1071.66 | L3: 1071.66 | M3: 1071.66 | N3: 14628.61
A4: Flood Insurance | B4: 494.75 | C4: 494.75 | D4: 494.75 | E4: 494.75 | F4: 494.75 | G4: 494.75 | H4: 494.75 | I4: 546.41 | J4: 546.41 | K4: 546.41 | L4: 546.41 | M4: 546.41 | N4: =SUM(B4:M4) -> 6195.3
A5: Fire Insurance | B5: 742 | C5: 742 | D5: 742 | E5: 742 | F5: 742 | G5: 742 | H5: 742 | I5: 698.66 | J5: 698.66 | K5: 698.66 | L5: 698.66 | M5: 698.66 | N5: =SUM(B5:M5) -> 8687.3
A6: Umbrella Insurance | B6: 147.66 | C6: 147.66 | D6: 147.66 | E6: 147.66 | F6: 147.66 | G6: 147.66 | H6: 147.66 | I6: 61.16 | J6: 61.16 | K6: 61.16 | L6: 61.16 | M6: 61.16 | N6: 1339.42
A7: Natural Gas | B7: 0 | C7: 0 | D7: 45.1 | E7: 67.23 | F7: 43.9 | G7: 43.57 | H7: 45.06 | I7: 29.95 | J7: 31.44 | K7: 40.89 | L7: 37.3 | M7: 95.87 | N7: 480.31
A8: Electric (1504 & 1514) | B8: 180.97 | C8: 125.98 | D8: 117.96 | E8: 225.82 | F8: 64.03 | G8: 77.33 | H8: 369.96 | I8: 346.08 | J8: 312.29 | K8: 629.65 | L8: 217 | M8: 237.76 | N8: 2904.83
A9: Electric (Combined Units of 1502/3823 Separate 1506/3821) | B9: 0 | C9: 0 | D9: 0 | E9: 112.49 | F9: 195.78 | G9: 539.95 | H9: 589.55 | I9: 620 | J9: 719.27 | K9: 241.53 | L9: 9.45 | M9: 27.2 | N9: 3055.22
A10: Water | B10: 200 | C10: 213.96 | D10: 0 | E10: 414.62 | F10: 152.28 | G10: 167.7 | H10: 152.28 | I10: 152.28 | J10: 144.57 | K10: 152.25 | L10: 152.28 | M10: 175.41 | N10: =SUM(B10:M10) -> 2077.63
N11: =SUM(N2:N10) -> 58285.06

Sheet Sheet3

Sheet 2022 Rent Roll
A1: Unit | B1: Jan | C1: Feb | D1: Mar | E1: Apr | F1: May | G1: Jun | H1: Jul | I1: Property Transfer | J1: Aug | K1: Sep | L1: Oct | M1: Nov | N1: Dec | O1: End of Year Summary
A2: 1504 39th street Galveston TX 77550 | B2: 1100 | C2: 1100 | D2: 1100 | E2: 1100 | F2: 1100 | G2: 1100 | H2: 1100 | I2: New Ownership | J2: 1100 | K2: 1100 | L2: 1100 | M2: 1100 | N2: 650
A3: 1506 39th street Galveston TX 77550 | B3: 725 | C3: 725 | D3: 725 | E3: 725 | F3: 725 | G3: 725 | H3: 725 | I3: New Ownership | J3: 725 | K3: 725 | L3: 725 | M3: 725 | N3: 725
A4: 1514 39th street Galveston TX 77550 | B4: 1200 | C4: 1200 | D4: 1200 | E4: 1200 | F4: 1200 | G4: 1200 | H4: 1200 | I4: New Ownership | J4: 0 | K4: 0 | L4: 0 | M4: 0 | N4: 0
A5: 1508,1510, 1512 39th street Galveston TX 77550 | B5: 1800 | C5: 1800 | D5: 1800 | E5: 1800 | F5: 1800 | G5: 1800 | H5: 1800 | I5: New Ownership | J5: 1800 | K5: 1800 | L5: 1800 | M5: 1800 | N5: 1800
A6: 1502 39th street Galveston TX 77550 | B6: 675 | C6: 675 | D6: 675 | E6: 675 | F6: 675 | G6: 675 | H6: 675 | I6: New Ownership | J6: 675 | K6: 0 | L6: 0 | M6: 0 | N6: 0
A7: 3821 Avenue N Galveston TX 77550 | B7: 325 | C7: 325 | D7: 325 | E7: 325 | F7: 325 | G7: 325 | H7: 325 | I7: New Ownership | J7: 325 | K7: 325 | L7: 325 | M7: 325 | N7: 325
A8: Monthly Rent Collected | B8: =SUM(B2:B7) -> 5825 | C8: 5825 | D8: 5825 | E8: 5825 | F8: 5825 | G8: 5825 | H8: 5825 | I8: New Ownership | J8: =SUM(J2:J7) -> 4625 | K8: =SUM(K2:K7) -> 3950 | L8: =SUM(L2:L7) -> 3950 | M8: =SUM(M2:M7) -> 3950 | N8: =SUM(N2:N7) -> 3500 | O8: =SUM(J8:N8,B8:I8) -> 60750

Sheet 2022 Expenses
A1: Expense | B1: August | C1: September | D1: October | E1: November | F1: December | G1: Subtotal
A2: Property Tax | B2: 1576.37 | C2: 1576.37 | D2: 1576.37 | E2: 1576.37 | F2: 1576.37 | G2: =SUM(B2:F2) -> 7881.85
A3: Wind Insurance | B3: 1324.33 | C3: 1324.33 | D3: 1324.33 | E3: 1324.33 | F3: 1324.33 | G3: 6621.65
A4: Flood Insurance | B4: 494.75 | C4: 494.75 | D4: 494.75 | E4: 494.75 | F4: 494.75 | G4: 2473.75
A5: Fire Insurance | B5: 742 | C5: 742 | D5: 742 | E5: 742 | F5: 742 | G5: 3710
A6: Umbrella Insurance | B6: 147.66 | C6: 147.66 | D6: 147.66 | E6: 147.66 | F6: 147.66 | G6: 738.3
A7: Natural Gas | B7: 0 | C7: 0 | D7: 45.1 | E7: 67.23 | F7: 37.3 | G7: 149.63
A8: Electric | B8: 180.97 | C8: 125.98 | D8: 117.96 | E8: 225.82 | F8: 78.15 | G8: 728.88
A9: Water | B9: 200 | C9: 213.96 | D9: 0 | E9: 414.62 | F9: 225 | G9: =SUM(B9:F9) -> 1053.58
G10: =SUM(G2:G9) -> 23357.64

Sheet Sheet5 (hidden)
A1: en
